Cogmind - Beta 10.1 @@@ ROGUE MODE // 2020.09.21 @ 05:52:14 // AFD2020/Player2 Player: DragoX Result: Core destroyed Performance ------------- Evolutions (0) 0 Regions Visited (2) 400 Robots Destroyed (26) 130 Value Destroyed (667) 667 Prototype IDs (0) 0 Alien Tech Used (0) 0 Bonus (-78) -78 TOTAL SCORE: 1119 Bonus ------- Follower Combat Kills 213 Friendly Fire -291 Cogmind --------- Core Integrity 0/250 Matter 290/300 Energy 250/250 System Corruption 0% Temperature Cool (260) Movement Walking (180) Ox2 Location -10/Mines Parts ------- > --- POWER (1) -------- Ion Engine > --- PROPULSION (2) --- Aluminum Leg Aluminum Leg > --- UTILITY (2) ------ High-capacity Storage Unit Sensor Array > --- WEAPON (2) ------- Medium Laser Beam Cannon > --- INVENTORY (12) --- Ion Engine Large Storage Unit High-capacity Storage Unit Core Shielding Weapon Shielding EM Pulse Gun Mining Claw Peak State ------------ > --- POWER ------------ Ion Engine > --- PROPULSION ------- Aluminum Leg Aluminum Leg > --- UTILITY ---------- Small Storage Unit Large Storage Unit > --- WEAPON ----------- Medium Laser Medium Laser > --- INVENTORY -------- Wheel [Rating: 7] Favorites ----------- Power Ion Engine Engine Ion Engine Propulsion Aluminum Leg Leg Aluminum Leg Hover Unit Hover Unit Utility High-capacity Storage Unit Device Sensor Array Storage High-capacity Storage Unit Weapon Medium Laser Energy Gun Medium Laser Energy Cannon Beam Cannon Launcher Grenade Launcher Build | -11 -10 -10 ------- Run | Scr Mat Min Slots Evolved . | . . . Power . | . . . Propulsion . | . . . Utility . | . . . Weapon . | . . . Parts Attached 19 | 6 9 4 Power 3 | 1 1 1 Engine 3 | 1 1 1 Core . | . . . Reactor . | . . . Propulsion 6 | 2 4 . Treads . | . . . Leg 4 | 2 2 . Wheel . | . . . Hover 2 | . 2 . Flight . | . . . Utility 6 | 1 3 2 Device 2 | . 1 1 Storage 4 | 1 2 1 Processor . | . . . Hackware . | . . . Protection . | . . . Artifact . | . . . Weapon 4 | 2 1 1 Energy Gun 2 | 2 . . Energy Cannon 1 | . . 1 Ballistic Gun . | . . . Ballistic Cannon . | . . . Launcher 1 | . 1 . Special Weapon . | . . . Impact Weapon . | . . . Slashing Weapon . | . . . Piercing Weapon . | . . . Special Melee Weapon . | . . . Unidentified Prototypes . | . . . Parts Lost 2 | . 1 1 Power . | . . . Propulsion 1 | . 1 . Utility . | . . . Weapon 1 | . . 1 Highest Loss Streak 1 | . 1 1 Average Slot Usage (%) 88 | . 88 88 Engine 10 | . 10 11 Leg 23 | . 21 28 Hover 4 | . 6 . Device 7 | . 6 11 Storage 14 | . 14 14 Energy Gun 20 | . 23 14 Launcher 5 | . 4 6 Naked Turns . | . . . Heaviest Build 43 | 13 41 43 Greatest Support 20 | 20 20 20 Greatest Overweight (x) 3 | 2 3 2 Average Overweight (x) 1 | . 1 1 Largest Inventory Capacity 20 | 6 12 20 Average Capacity 11 | 5 11 12 Most Carried 11 | 6 11 11 Average Carried 6 | 2 5 8 Final Capacity 14 | 6 12 14 Final Carried 14 | 3 11 14 Class Distribution -------------------- 87% | Mutant 12% | Scavenger-Mutant Dominant Class ---------------- Mutant | -10/Materials Mutant | -10/Mines Resources | -11 -10 -10 ----------- Run | Scr Mat Min Matter Collected 500 | 260 109 131 Remotely . | . . . Salvage Created 826 | 65 553 208 Parts 46 | 1 32 13 Haulers Intercepted . | . . . Recyclers Shooed 1 | . 1 . Parts Field Recycled . | . . . Retrieved Matter . | . . . Parts Self-Destructed . | . . . Prevented . | . . . Kills | -11 -10 -10 ------- Run | Scr Mat Min Combat Hostiles Destroyed 20 | . 13 7 Guns 9 | . 6 3 Cannons 1 | . . 1 AOE 9 | . 6 3 Classes Destroyed 7 | 1 5 1 Builder 1 | . 1 . Tunneler 1 | . 1 . Recycler 3 | 1 2 . Watcher 1 | . 1 . Swarmer 5 | . 4 1 Grunt 14 | . 9 5 Assembled 1 | . . 1 Best Kill Streak 5 | 1 5 2 Combat Bots Only 4 | . 4 2 Max Kills in Single Turn 2 | 1 2 1 Gunslinging . | . . . Exploded 2 | . 2 1 Melee . | . . . Uniques/NPCs Destroyed . | . . . Combat | -11 -10 -10 -------- Run | Scr Mat Min Damage Taken 473 | . 325 148 Core 126 | . 115 11 Absorbed by Shields . | . . . Core Remaining (%) 100 | 100 . . Volleys Fired 65 | 2 44 19 Largest 2 | 2 2 2 Hottest 110 | 100 100 110 Shots Fired 116 | 4 81 31 Gun 96 | 4 73 19 Cannon 7 | . . 7 Launcher 13 | . 8 5 Special . | . . . Kinetic . | . . . Thermal 103 | 4 73 26 Explosive 13 | . 8 5 Electromagnetic . | . . . Robot Hit Streak 11 | 4 11 4 Robot Miss Streak 5 | . 4 5 Penetration Max . | . . . Secondary Targets 2 | . 2 . Max Gunslinging Chain 1 | . 1 . Shots Hit Robots 64 | 4 48 12 Core Hits 43 | 2 28 13 Critical Hits . | . . . Critical Kills . | . . . Critical Parts Destroyed . | . . . Melee Attacks . | . . . Impact . | . . . Slashing . | . . . Piercing . | . . . Sneak Attacks . | . . . Combat Hostiles . | . . . Follow-up Attacks . | . . . Damage Inflicted 1792 | 51 1175 566 Guns 767 | 51 590 126 Cannons 51 | . . 51 Explosions 974 | . 585 389 Melee . | . . . Ramming . | . . . Kinetic . | . . . Thermal 920 | 51 590 279 Explosive 872 | . 585 287 Electromagnetic . | . . . Impact . | . . . Slashing . | . . . Piercing . | . . . Highest Corruption . | . . . Average Corruption . | . . . Corruption Purged . | . . . Overload Shots . | . . . Overflow Damage 43 | . . 43 Projectiles . | . . . Explosions 43 | . . 43 Melee . | . . . Knockbacks . | . . . Impact . | . . . Kinetic . | . . . Secondary . | . . . Self-Inflicted Damage 38 | . 38 . Shots 1 | . 1 . Rammed . | . . . Targets Rammed . | . . . Kicked . | . . . Crushed . | . . . Highest Temperature 260 | 78 219 260 Average Temperature 62 | 40 66 55 Received Heat Transfer 233 | . 135 98 Siege Activations . | . . . Robots Corrupted . | . . . Combat Hostiles . | . . . Parts Fried . | . . . Impact Corruptions . | . . . Robots Melted 1 | . 1 . Combat Hostiles 1 | . 1 . Parts Melted 3 | 1 2 . Heat Transferred 2272 | 148 1655 469 Parts Sabotaged . | . . . Parts Stolen . | . . . Parts Stripped . | . . . Power Chain Reactions . | . . . Missiles Intercepted . | . . . Alert | -11 -10 -10 ------- Run | Scr Mat Min Peak Influence 329 | 5 316 329 Initial 123 | . 3 123 Average 138 | 1 113 224 Maximum Alert Level 1 | . 1 1 Low Security (%) 69 | 100 82 29 Level 1 30 | . 17 70 Level 2 . | . . . Level 3 . | . . . Level 4 . | . . . Level 5 . | . . . High Security . | . . . Max Security . | . . . Squads Dispatched 3 | . 3 . Investigation 2 | . 2 . Extermination . | . . . Reinforcement 1 | . 1 . Assault . | . . . Garrison . | . . . Intercept . | . . . Construction Impeded . | . . . Haulers Reinforced . | . . . Stealth | -11 -10 -10 --------- Run | Scr Mat Min Distress Signals . | . . . Communications Jammed . | . . . Distress Signals . | . . . Times Spotted 49 | . 26 23 Peak Tracking Total 17 | . 3 17 Tactical Retreats . | . . . Traps | -11 -10 -10 ------- Run | Scr Mat Min Traps Triggered 1 | . 1 . Indirectly . | . . . Trap Hack Attempts . | . . . Triggered . | . . . Disarmed . | . . . Reprogrammed . | . . . Reused . | . . . Traps Extracted . | . . . Installed . | . . . Triggered . | . . . Machines | -11 -10 -10 ---------- Run | Scr Mat Min Machines Disabled 3 | . 2 1 Max in Single Turn 1 | . 1 1 Machines Sabotaged . | . . . Garrisons Compromised . | . . . Overloaded Fab Kills . | . . . Fab Network Shutdowns . | . . . Hacking | -11 -10 -10 --------- Run | Scr Mat Min Machines Accessed 7 | . 7 . Terminals 5 | . 5 . Fabricators . | . . . Repair Stations 1 | . 1 . Recycling Units 1 | . 1 . Scanalyzers . | . . . Garrison Access . | . . . Total Hacks 16 | . 16 . Successful 6 | . 6 . Failed 10 | . 10 . Catastrophic 2 | . 2 . Database Lockouts . | . . . Manual 14 | . 14 . Terminals 13 | . 13 . Fabricators . | . . . Repair Stations 2 | . 2 . Recycling Units 1 | . 1 . Scanalyzers . | . . . Garrison Access . | . . . Terminal Hacks . | . . . Fabricator Hacks . | . . . Repair Station Hacks . | . . . Recycling Unit Hacks . | . . . Scanalyzer . | . . . Garrison Access Hacks . | . . . Unauthorized Hacks 6 | . 6 . Terminals 5 | . 5 . Botnet 1 | . 1 . Detonate 3 | . 3 . Operators 1 | . 1 . Fabricators . | . . . Repair Stations . | . . . Recycling Units 1 | . 1 . Tunnel 1 | . 1 . Scanalyzers . | . . . Garrison Access . | . . . Data Cores Recovered . | . . . Used . | . . . Hacking Detections 4 | . 4 . Full Trace Events 3 | . 3 . Feedback Events . | . . . Feedback Blocked . | . . . Robot Schematics Acquired . | . . . Robots Built . | . . . Matter . | . . . Time . | . . . Total Robot Build Rating . | . . . Part Schematics Acquired . | . . . Parts Built . | . . . Matter . | . . . Time . | . . . Total Part Build Rating . | . . . Parts Repaired . | . . . Time . | . . . Parts Recycled . | . . . Recycled Matter . | . . . Retrieved Matter . | . . . Retrieved Components . | . . . Parts Scanalyzed . | . . . Part Schematics Acquired . | . . . Parts Damaged . | . . . Bothacking | -11 -10 -10 ------------ Run | Scr Mat Min Used RIF Installer . | . . . Robots Hacked . | . . . Non-combat . | . . . Combat . | . . . Robot Hacks Applied . | . . . Relay Couplers Released . | . . . Robots Rewired . | . . . Allies Hacked . | . . . Hacks Repelled . | . . . Allies | -11 -10 -10 -------- Run | Scr Mat Min Total Allies 1 | . 1 . Largest Group 1 | . 1 1 Highest-Rated Group 58 | . 58 58 Highest-Rated Ally 58 | . 58 58 Total Orders . | . . . Ally Attacks 50 | . 37 13 Total Damage 895 | . 554 341 Kills 18 | . 12 6 Allies Corrupted . | . . . Allies Melted . | . . . Intel | -11 -10 -10 ------- Run | Scr Mat Min Robot Analysis Total . | . . . Derelict Logs Recovered 1 | . . 1 Drone Launches . | . . . Drone Recoveries . | . . . Exploration | -11 -10 -10 ------------- Run | Scr Mat Min Turns Passed 2145 | 77 1513 555 Spaces Moved 946 | 46 643 257 Core 22 | 22 . . Treads . | . . . Legs 788 | 24 507 257 Wheels . | . . . Hover 136 | . 136 . Flight . | . . . Fastest Speed 50 | 50 116 150 Average Speed 158 | 123 159 161 Slowest Speed 236 | 150 236 180 Overloaded Moves . | . . . Propulsion Burnouts . | . . . Robots Hopped . | . . . Cave-ins Triggered . | . . . Exploration Rate (%) 53 | 4 97 59 Regions Visited 2 Branch Regions 1 Pre-discovered Areas 1 | . 1 . Known Exits Taken . | . . . Unknown Exits Taken 2 | 1 1 . Scrap Searched 1 | . . 1 Spaces Dug 6 | . 6 . Terrain Destroyed 67 | . 18 49 Melee . | . . . Projectile . | . . . AOE 67 | . 18 49 Terrain Rammed . | . . . Walls Destroyed . | . . . Machines Disabled . | . . . Actions | -11 -10 -10 --------- Run | Scr Mat Min Total 1484 | 61 1057 366 Wait 411 | . 326 85 Move 944 | 45 642 257 Hop . | . . . Pick Up 29 | 8 21 . Fast Attach 1 | 1 . . Attach 15 | 5 7 3 Detach 2 | . 2 . Swap 3 | . 2 1 Drop 14 | . 13 1 Fire 65 | 2 44 19 Melee . | . . . Ram . | . . . Kick . | . . . Crush . | . . . Escape Stasis . | . . . Rewire . | . . . Trap . | . . . Miscellaneous . | . . . Route ------- -11/Scrapyard -10/Materials (discovered 4 exits: [*Mat x3] / [*Min]) -10/Mines (discovered 2 exits: [*Mat x2]) History --------- Turn | Location | Event 20 | -11/Scrapyard | Discovered new exit (range 16) 78 | -11/Scrapyard | Entered Materials 313 | -10/Materials | Build established: Mutant 579 | -10/Materials | Discovered new exit (range 10) 779 | -10/Materials | Discovered new exit (range 14) 1043 | -10/Materials | Core integrity fell below 50% 1258 | -10/Materials | Discovered new exit (range 15) 1523 | -10/Materials | Discovered new exit (range 10) 1591 | -10/Materials | Entered Mines 1591 | -10/Mines | Accompanied by 1 ally 1748 | -10/Mines | Discovered new exit (range 13) 1748 | -10/Mines | Discovered new exit (range 5) 2072 | -10/Mines | Learned 2 Materials zone layouts 2130 | -10/Mines | Assembled infested the area 2139 | -10/Mines | Core integrity fell below 20% 2146 | -10/Mines | Core destroyed Last Messages --------------- 01927_ U-05 Engineer lays Concrete. 01929_ U-05 Engineer builds a Wall. 01931_ U-05 Engineer lays Concrete. Player 2: "Decisions, decisions... My Particle Gun and Hcp. Matter Pod are still just sitting in inventory waiting for their chance to shine." 02072_ Acquired derelict log, extracted data. Data stored: Materials zone layouts (x2). 02087_ S-10 Pest destroyed. 02099_ Player 2 drops Lgt. Assault Rifle. 02099_ Player 2 attaches Lgt. Assault Rifle. 02130_ ALERT: Infestation in the mines, dispatching Demolisher response squad. Player 2: "Quick, hide!" 02136_ Player 2 swaps in Grenade Launcher. Player 2: "I feel the odds shifting in our favor..." 02138_ K-01 Serf destroyed. 02143_ as-53293 destroyed. 02143_ as-92278 destroyed. 02143_ as-32964 destroyed. 02143_ as-60566 destroyed. Map ----- +----------------------------------------------------+ | ????????????????????????????????????????????????? | | ????????????????????????????????????????????????? | | ????????????????????????????????????????????????? | | ????????????????????????????????????????????????? | | ????????????????????????????????????????????????? | | ????????????????????????????????????????????????? | | ????????????????????????????????????????????????# | | ???????????????????????????????????????????????## | | ??????????????????????????????????????????????## | | ??????????????????????????????????????????????# | | ????????????????????????a????????????????????## | | ???????????????????????? ???????????????????## # | | ????????????????????????a???????????????????# # | | ????????????????????????a???????????????????# # | | ???????????????????????? ???????????????????# # | | ????????????????????????a??????????????????# ## | | ???????????????????????? ?????????????????# ##? | | ??????????????????????##a##??????????????# ##?? | | ??????????????????????# % #??????????????# ??## | | ??????????????????????#aa ???????????????## ##### | | ??????????????????????# % ????????????????##?# | | ??????????????????????# @ ???????????????????# | | ???????????????????????aa ???????????????????# | | ??????????????????????? a#??????????????????## | | ???????????????????????#%#?????????????????## # | | ???????????????????????#@#######??????????## ## | | ???????????????????????# #?????????## #? | | ???????????????????????# ##### #?????????# ##? | | ???????????????????????# #???# #????????## ###?? | | ???????????????????????# #???# #???????## ##???? | | ???????????????????????# #???# #???????# #????? | | ???????????????????????# #???# #???????# ##???? | | ???????????????????????# #???# ##??????# ##### | | ??????????????????????? #??## ##?????## # | | ???????????????????????###??# #??????# | | ????????????????????????????# ##?????# | | ????????????????????????????## = ####??## | | ????????????????????????????## * ##??#### | | ????????????????????????????# #?????## | | ???????????????????????????# # [=#?????## | | ??????????????????????????# ## #* ####### | | ??????????????????????????# ## # ## | | ??????????????????????????## ## | | ???????????????????????????# ### ### | | ???????????????????????????# ##?# # ###?# | | ???????????????????????????# ???# # ##???? | | ???????????????????????????# ???# # #????? | | ???????????????????????????# ???# ## #?#### | | ???????????????????????????# ???# ### ##?# ! | | ???????????????????????????# ???# #?## ##??#=## | +----------------------------------------------------+ Best States ------------- Heat Dissipation 25 Energy Generation 10 Energy Capacity 250 Matter Stores 300 Matter Capacity 300 Sight Range 16 Robot Scan Range 10 Terrain Scan Density 10 Evasion (%) 40 Item Schematics ----------------- None Robot Schematics ------------------ None Fabricated ------------ Nothing Alien Tech Used ----------------- None Achievements -------------- It's Just You Challenges ------------ None Player 2 | -11 -10 -10 ---------- Run | Scr Mat Min Slots Evolved . | . . . Power . | . . . Propulsion . | . . . Utility . | . . . Weapon . | . . . Parts Attached 18 | . 15 3 Parts Lost . | . . . Damage Taken 880 | . 544 336 Core 125 | . 61 64 Player 2/Cogmind (%) 49 | . 34 85 Absorbed by Shields . | . . . Damage Inflicted 895 | . 554 341 Player 2/Cogmind (%) 33 | . 32 37 Combat Hostiles Destroyed 14 | . 8 6 Player 2/Cogmind (%) 41 | . 38 46 Game ------ Seed LauncherWeaponSheargun Manual? 0 Play Time 00:27:20 Cumulative 10.1 hours Start 2020.09.21 @ 05:20:42 End 2020.09.21 @ 05:52:14 Sessions 1 Manual Loads 0 Difficulty Rogue Special Mode AFD2020/Player2 Game No. 17 Rogue 17 Adventurer 0 Explorer 0 Win Type - Total 0 Types 0/0/0/0/0/0/0/0/0 Lore% 10 Gallery% 14 Achievement% 16 Wizard Run 0 Options --------- ASCII 0 Keyboard 0 Movement Mouse Keybinds 0 Fullscreen 1 Font 18/X11 Map View 76x50 Tactical HUD 1 Map Filters NONE Filters NONE Steam 0 RUN: 24a65367-2c3a-4f74-a383-c88b03c01132